[Event "Rudolf Teschner GT 2022"]
[Site "Berlin"]
[Date "2022.05.27"]
[Round "3.1"]
[White "Van den Doel, Erik"]
[Black "Weihrauch, Jakob"]
[Result "1-0"]
[ECO "D05"]
[WhiteElo "2581"]
[BlackElo "2139"]
[Annotator "TA"]
[PlyCount "161"]
[EventDate "2022.05.25"]
[EventType "swiss"]
[EventCountry "GER"]
[SourceTitle "playchess.com"]
[Source "ChessBase"]
[SourceQuality "1"]
[TimeControl "5400+30"]

{[%evp 10,161,13,8,24,7,18,8,18,4,0,2,8,0,16,25,17,12,11,11,0,0,0,0,0,0,0,1,9,7,12,2,17,0,0,0,-8,-35,0,-1,-1,-1,-9,-3,-4,-11,-10,-5,-3,-10,-4,-37,0,0,0,0,0,0,26,22,59,51,49,20,52,43,91,89,160,137,129,127,134,143,133,127,177,126,152,152,172,152,169,149,152,137,149,90,108,115,108,108,93,0,129,56,56,28,137,137,137,137,137,137,137,137,137,137,137,137,137,137,137,113,122,122,137,122,122,122,122,122,122,98,122,84,122,122,122,122,127,122,122,0,137,122,122,97,129,56,186,186,164,179,29962,29964,29963,29964,29955,29951,29996,29997,29997,29997]} 1. d4 {[%emt 0:03:36]} Nf6 {[%emt 0:00:06]} 2. Nf3 {[%emt 0:00:04]} e6 {[%emt 0:00:04]} 3. e3 {[%emt 0:00:04]} d5 {[%emt 0:00:40]} 4. Bd3 {[%emt 0:01:21]} c5 {[%emt 0:00:45]} 5. b3 {[%emt 0:00:06]} Nbd7 {[%emt 0:06:46]} 6. O-O {[%emt 0:00:35]} Be7 {[%emt 0:01:16] D05: Colle System with ...e6.} 7. Bb2 {[%emt 0:04:12]} b6 {[%emt 0:00:47]} 8. c4 {[%emt 0:03:43]} Bb7 {[%emt 0:07:36] The position is equal.} 9. Qe2 $5 {[%emt 0:02:39][%mdl 4] A promising side line.} O-O {[%emt 0:02:27]} 10. Rd1 {[%emt 0:01:56]} cxd4 {[%emt 0:10:48]} 11. exd4 {[%emt 0:02:14] [#]} Ne4 $146 {[%emt 0:15:56]} ({Predecessor:} 11... Rc8 12. Nc3 Qc7 13. Ne5 Rfd8 14. Rac1 Qb8 15. f4 Nf8 16. f5 dxc4 17. Bxc4 Bd5 18. Nxd5 exd5 {1-0 (59) Cruz Estrada,F (2345)-Zambrana,O (2389) Lima 2002}) 12. cxd5 {[%emt 0:06:40]} exd5 {[%emt 0:00:07]} 13. Nc3 {[%emt 0:00:09]} Ndf6 {[%emt 0:05:08]} 14. Rac1 {[%emt 0:02:41]} Nxc3 {[%emt 0:05:51]} 15. Rxc3 {[%emt 0:00:08]} Ne4 {[%emt 0:06:45]} 16. Rc2 {[%emt 0:00:22]} Bd6 {[%emt 0:01:22]} 17. Ne5 {[%emt 0:08:50]} Qe7 {[%emt 0:08:36]} 18. f3 {[%emt 0:05:28]} Ng5 {[%emt 0:01:25]} 19. Qf2 {[%emt 0:00:53]} f6 {[%emt 0:00:55]} 20. Ng4 {[%emt 0:06:30]} (20. Nc6 Qd7 21. Rdc1 Bf4 $19) 20... Qf7 {[%emt 0:04:11]} 21. Qh4 {[%emt 0:03:19]} h5 {[%emt 0:02:03]} 22. Ne3 {[%emt 0:28:04] [#] Black must now prevent Nf5.} g6 {[%emt 0:00:10] Inhibits Nf5.} 23. Re1 {[%emt 0:00:48]} Rfe8 {[%emt 0:02:03]} 24. Rce2 {[%emt 0:00:57][%cal Oe3c4]} Ne6 {[%emt 0:01:38]} 25. Nc2 {[%emt 0:04:25]} Nf4 {[%emt 0:01:06]} 26. Rxe8+ {[%emt 0:00:27]} Rxe8 {[%emt 0:00:01]} 27. Rxe8+ {[%emt 0:00:16]} Qxe8 {[%emt 0:00:01]} 28. Bf1 {[%emt 0:00:12]} Kg7 {[%emt 0:01:47]} 29. Qf2 {[%emt 0:00:05]} Qc8 {[%emt 0:01:55]} 30. Na3 {[%emt 0:03:52]} Bxa3 {[%emt 0:04:30]} 31. Bxa3 {[%emt 0:00:04]} Ba6 {[%emt 0:00:03]} 32. Qe3 {[%emt 0:03:13] Strongly threatening Qe7+.} Bxf1 {[%emt 0:00:09]} 33. Qxf4 $11 {[%emt 0:00:03][%mdl 4096] Endgame Threatens to win with Qd6. KQB-KQB} Bb5 {[%emt 0:01:24]} (33... g5 $5 {[%cal Rg5f4]} 34. Qd6 Bd3 $14) 34. h4 {[%emt 0:00:19]} Qe6 {[%emt 0:02:15]} 35. Kh2 {[%emt 0:01:17]} Be8 {[%emt 0:02:41]} 36. Qb8 {[%emt 0:01:57]} Qd7 {[%emt 0:00:39]} (36... Qe1 {feels hotter.} 37. Qc7+ Kg8 38. Qf4 Kg7) 37. Bd6 {[%emt 0:00:43]} Kf7 {[%emt 0:00:53]} (37... b5 $14 {is more appropriate.}) 38. Bc7 $16 {[%emt 0:01:16]} f5 {[%emt 0:02:16]} (38... g5 $142) 39. Bf4 {[%emt 0:02:11]} Qe7 {[%emt 0:00:59]} 40. Bg5 {[%emt 0:00:09]} Qd7 {[%emt 0:00:21]} 41. Qe5 {[%emt 0:01:10]} Kg8 {[%emt 0:00:01] Against Qh8+} 42. Kg3 {[%emt 0:00:35]} a6 {[%emt 0:00:51]} (42... Qf7 $16 43. a4 Qd7) 43. Qb8 {[%emt 0:00:53]} (43. a4 $18) 43... b5 {[%emt 0:00:34]} 44. Qe5 {[%emt 0:01:01]} a5 {[%emt 0:00:52]} 45. Be7 {[%emt 0:00:10]} Bf7 {[%emt 0:00:54]} 46. Qb8+ {[%emt 0:00:07]} Be8 {[%emt 0:00:11]} 47. Bf6 {[%emt 0:00:27]} a4 {[%emt 0:00:13]} 48. Be5 {[%emt 0:00:42]} (48. Qe5 $142) 48... axb3 {[%emt 0:00:08]} 49. axb3 {[%emt 0:00:03]} Kf7 {[%emt 0:00:12]} 50. Qb6 {[%emt 0:01:24] Intending Qf6+ and mate.} Qe7 {[%emt 0:00:40][%cal Of5f4] Against Qf6+} 51. Qb8 {[%emt 0:02:43]} (51. Qa5 $16) 51... g5 {[%emt 0:00:32]} (51... Qd7 $11) 52. Qc8 {[%emt 0:00:10]} (52. hxg5 $16 {Hoping for Kh4.} Qxg5+ 53. Kh3) 52... gxh4+ $14 {[%emt 0:01:06]} 53. Kh3 {[%emt 0:00:26]} Qd7 {[%emt 0:00:59]} (53... Bd7 $1 $11 {remains equal.} 54. Qc1 (54. Qh8 f4+ 55. Kh2 Qg5 $11) 54... f4+ 55. Kh2 h3) 54. Qc1 $16 {[%emt 0:00:12]} Qe6 {[%emt 0:00:49]} 55. Qg5 {[%emt 0:00:13][%csl Ge5][%cal Rg5g7]} Qg6 {[%emt 0:00:21] Prevents Qg7+.} 56. Qxh4 {[%emt 0:00:06]} Kf8 {[%emt 0:00:45]} 57. Qd8 {[%emt 0:00:23]} Qe6 {[%emt 0:00:01]} 58. b4 {[%emt 0:01:25]} Kf7 {[%emt 0:00:18]} 59. Kg3 {[%emt 0:00:06] 0x0.000842e80caedp-1022s more active pieces.} Kf8 {[%emt 0:01:04]} 60. Kf2 {[%emt 0:00:55]} Kf7 {[%emt 0:00:21]} 61. Qc7+ {[%emt 0:00:48]} Qd7 {[%emt 0:00:08]} 62. Qc1 {[%emt 0:00:33]} Qe6 {[%emt 0:00:08]} 63. Qg5 {[%emt 0:00:03][%csl Ge5][%cal Rg5g7]} Qg6 {[%emt 0:00:13] Prevents Qg7+.} 64. Qh4 {[%emt 0:00:05]} Kf8 {[%emt 0:00:18]} 65. Qf4 {[%emt 0:01:04]} Kf7 {[%emt 0:00:09]} 66. Bd6 {[%emt 0:00:23]} Qe6 {[%emt 0:00:27]} 67. Bc5 {[%emt 0:00:04]} Kg6 {[%emt 0:00:40]} 68. Qg3+ {[%emt 0:00:09]} ({But not} 68. Bf8 Qf6 69. Bd6 (69. Qh6+ Kf7 $14) 69... Bd7) 68... Kh7 {[%emt 0:00:52]} 69. Qg5 {[%emt 0:01:00]} Qg6 {[%emt 0:00:14]} 70. Qd8 {[%emt 0:00:19]} Qe6 {[%emt 0:00:39]} 71. Qg5 {[%emt 0:00:30]} Qg6 $1 {[%emt 0:00:06]} 72. Qe7+ {[%emt 0:00:03]} Bf7 {[%emt 0:00:39]} 73. Qd7 {[%emt 0:01:18]} f4 {[%emt 0:00:53]} 74. Bd6 {[%emt 0:00:51]} (74. Qxb5 $16 Qc2+ 75. Qe2 Qxe2+ 76. Kxe2) 74... Qc2+ {[%emt 0:01:54] A mistake that costs the game.} ({Better is} 74... Qe6 $1 $14 75. Qxe6 Bxe6) 75. Kg1 $18 {[%emt 0:00:09]} Kg6 {[%emt 0:00:38]} 76. Be5 {[%emt 0:01:36] White wants to mate with Qd6+.} ({Don't play} 76. Bxf4 $6 Qd1+ 77. Kh2 Qxd4 $16) 76... Qd1+ $2 {[%emt 0:00:39] [#]} (76... Qe2 $18) 77. Kh2 {[%emt 0:00:03] White mates.} Qe1 {[%emt 0:00:13]} 78. Qc6+ {[%emt 0:00:41]} Kh7 {[%emt 0:00:07]} 79. Qc2+ {[%emt 0:00:04]} Kg8 {[%emt 0:01:05]} 80. Qc8+ {[%emt 0:00:05]} Kh7 {[%emt 0:00:04]} 81. Qh8+ {[%emt 0:00:05] Weighted Error Value: White=0.11 (very precise) /Black=0.16 (very precise)} 1-0

[Event "Rudolf Teschner GT 2022"]
[Site "Berlin"]
[Date "2022.05.27"]
[Round "3.2"]
[White "Florstedt, Johannes"]
[Black "Eilenberg, Jonas"]
[Result "1-0"]
[ECO "C11"]
[WhiteElo "2365"]
[BlackElo "2149"]
[Annotator "TA"]
[PlyCount "69"]
[EventDate "2022.05.25"]
[EventType "swiss"]
[EventCountry "GER"]
[SourceTitle "playchess.com"]
[Source "ChessBase"]
[SourceQuality "1"]
[TimeControl "5400+30"]

{[%evp 16,69,16,9,28,20,0,0,33,-39,-40,-33,28,37,37,41,36,28,37,14,12,13,46,29,85,74,147,148,148,153,147,103,150,138,130,129,139,133,123,112,172,175,203,208,197,192,310,317,456,450,852,455,828,776,981,764]} 1. e4 {[%emt 0:00:03]} e6 {[%emt 0:00:05]} 2. d4 {[%emt 0:00:05]} d5 {[%emt 0:00:05]} 3. Nc3 {[%emt 0:00:22]} Nf6 {[%emt 0:00:07][%cal Bg8f6,Bf6d7,Bd7c5,Bc5d3][%mdl 32]} 4. e5 {[%emt 0:00:05]} Nfd7 {[%emt 0:00:04]} 5. f4 {[%emt 0:00:06]} c5 {[%emt 0:00:04]} 6. Nf3 {[%emt 0:00:09]} Nc6 {[%emt 0:00:05]} 7. Be3 {[%emt 0:00:06]} Be7 {[%emt 0:00:04]} 8. Qd2 {[%emt 0:00:52]} O-O {[%emt 0:00:08]} 9. dxc5 {[%emt 0:00:13]} Nxc5 {[%emt 0:00:15] C11: French: Classical System: 4 e5 and 4 Bg5 dxe4.} 10. O-O-O {[%emt 0:01:41]} a6 {[%emt 0:00:19]} 11. Kb1 {[%emt 0:04:11]} b5 {[%emt 0:00:06] The position is equal.} 12. Bd3 {[%emt 0:03:05]} (12. Bxc5 $14 Bxc5 13. Bd3) 12... Nxd3 $15 {[%emt 0:07:15]} 13. Qxd3 {[%emt 0:01:45]} Bb7 {[%emt 0:02:58]} (13... b4 $1 $15 14. Na4 Qa5) 14. h4 $11 {[%emt 0:02:26]} Nb4 {[%emt 0:05:55]} 15. Qd2 {[%emt 0:01:06]} Rc8 {[%emt 0:05:27][%cal Ob4c2] [#]} 16. Nd4 $146 {[%emt 0:16:53]} (16. f5 {is interesting.} exf5 17. a3 d4 18. Qxd4 Nxc2 19. Qxd8 Nxa3+ 20. bxa3 Rfxd8 21. Rxd8+ Rxd8 22. Bg5) ({Predecessor:} 16. f5 exf5 17. a3 d4 18. Nxd4 Nd5 19. Nxd5 Bxd5 20. Nxb5 Be4 21. Nc3 Qc7 22. Nxe4 fxe4 {1-0 (55) Leko,P (2674)-Cori,J (2686) Biel 2019}) 16... Nc6 {[%emt 0:19:58]} 17. Nxc6 {[%emt 0:00:40]} Bxc6 {[%emt 0:00:35]} 18. Ne2 {[%emt 0:00:35]} f6 {[%emt 0:05:34]} 19. Bd4 {[%emt 0:02:27][%cal Be3d4,Bd4f6,Bf6e5,Be5d6][%mdl 32]} Qc7 {[%emt 0:18:02]} (19... fxe5 $11 20. Bxe5 Bf6) 20. h5 $16 {[%emt 0:02:15][%cal Bh4h5,Bh5h6][%mdl 32]} b4 {[%emt 0:02:36] [#]} (20... f5 $142) 21. h6 $1 {[%emt 0:11:09]} g6 {[%emt 0:02:19]} 22. exf6 {[%emt 0:01:40]} Bxf6 {[%emt 0:00:23]} 23. g3 {[%emt 0:02:38]} Bb5 {[%emt 0:01:58]} (23... a5 $142) 24. Bxf6 {[%emt 0:00:26]} Bxe2 {[%emt 0:01:12]} 25. Be5 $36 {[%emt 0:01:58][%mdl 2048] Black is under strong pressure.} ({But not} 25. Qxe2 Rxf6 26. Rhe1 Qd6) 25... Qc4 {[%emt 0:00:08]} 26. b3 {[%emt 0:02:03] The board is on fire.} Qb5 {[%emt 0:00:49] [#]} 27. Rc1 {[%emt 0:16:25] Hoping for Bb2.} Bf3 {[%emt 0:01:43]} (27... Bg4 $16) 28. Rhe1 $18 {[%emt 0:02:35]} Be4 {[%emt 0:03:08]} 29. Bd6 {[%emt 0:02:24][%csl LRb4,LRf8]} Rf7 {[%emt 0:02:12]} 30. Bxb4 {[%emt 0:00:38]} ({Stronger than} 30. Qxb4 Qxb4 31. Bxb4 Rf5 $11) 30... Rfc7 {[%emt 0:01:34]} (30... Rb7 {was necessary.}) 31. Qd4 {[%emt 0:00:58][%cal Ob4c3] And now Bc3! would win.} e5 {[%emt 0:02:02]} (31... Re8 $142 32. Qe5 Rd7) 32. fxe5 {[%emt 0:00:05] aiming for e6. White is clearly winning.} a5 {[%emt 0:09:52]} (32... Rc4 $142 33. bxc4 Rxc4) 33. Rxe4 {[%emt 0:04:14][%cal Ob4d6] Strongly threatening Bd6!} dxe4 {[%emt 0:00:53]} (33... axb4 $142 34. Qxb4 Qxb4 35. Rxb4 Kf7) 34. Bd6 {[%emt 0:00:27]} Rc4 {[%emt 0:00:27]} 35. Qa7 {[%emt 0:00:16] Weighted Error Value: White=0.28 (precise) /Black=0.35} 1-0

[Event "Rudolf Teschner GT 2022"]
[Site "Berlin"]
[Date "2022.05.27"]
[Round "3.3"]
[White "Tscheuschner, Georg"]
[Black "Tschernatsch, Johannes"]
[Result "1-0"]
[ECO "D45"]
[WhiteElo "2150"]
[BlackElo "2358"]
[Annotator "TA"]
[PlyCount "57"]
[EventDate "2022.05.25"]
[EventType "swiss"]
[EventCountry "GER"]
[SourceTitle "playchess.com"]
[Source "ChessBase"]
[SourceQuality "1"]
[TimeControl "5400+30"]

{[%evp 23,57,24,29,15,22,22,75,90,109,112,132,134,229,140,508,487,503,503,476,441,514,431,978,972,850,718,713,710,687,695,754,696,29977,29975,29991,1180]} 1. Nf3 {[%emt 0:00:04]} Nf6 {[%emt 0:00:30]} 2. c4 {[%emt 0:00:05]} c6 {[%emt 0:01:17]} 3. Nc3 {[%emt 0:00:59]} d5 {[%emt 0:00:09]} 4. e3 {[%emt 0:00:46]} e6 {[%emt 0:01:19]} 5. b3 {[%emt 0:00:36]} Bd6 {[%emt 0:01:00]} 6. Bb2 {[%emt 0:00:20]} Nbd7 {[%emt 0:02:43]} 7. d4 {[%emt 0:13:54]} O-O {[%emt 0:00:52]} 8. Be2 {[%emt 0:00:11]} dxc4 {[%emt 0:04:01]} 9. bxc4 {[%emt 0:00:06]} e5 {[%emt 0:02:29]} 10. O-O {[%emt 0:00:07]} exd4 {[%emt 0:01:13]} 11. exd4 {[%emt 0:00:07]} Re8 {[%emt 0:01:27]} 12. Qc2 {[%emt 0:00:05]} Nf8 {[%emt 0:02:53]} 13. h3 {[%emt 0:00:39] D45: Semi-Slav: 5 e3.} Ng6 {[%emt 0:01:48][%cal Oc8h3] White must now prevent ...Bxh3!} 14. Rfe1 {[%emt 0:00:21]} Qa5 {[%emt 0:04:53]} (14... Be6 $11 {keeps the balance.}) 15. c5 $1 $16 {[%emt 0:12:49] [#] White is better.} Bf8 $146 {[%emt 0:24:21] [#]} ({Predecessor:} 15... Bf4 16. Bc4 Be6 17. Bxe6 fxe6 18. g3 Bh6 19. Qb3 Nf8 20. Bc1 Bxc1 21. Raxc1 Qc7 {1-0 (60) Papin,V (2476)-Sadhwani,R (2339) Moscow 2018}) 16. Bc4 $1 {[%emt 0:04:47]} Qb4 {[%emt 0:06:58]} 17. Rxe8 {[%emt 0:08:47] White is more active.} Nxe8 {[%emt 0:00:22]} (17... Qxc4 $16 {was called for.} 18. Nd2 Qb4) 18. Bb3 $40 {[%emt 0:10:46][%mdl 128] Strongly threatening a3. White has strong attack.} Nh8 $2 {[%emt 0:06:35][%mdl 8192]} (18... Be7 $16 {is tougher.} 19. Bc1 Nh4) 19. a3 {[%emt 0:02:33]} Qa5 {[%emt 0:00:06] [#]} 20. Ng5 $1 {[%emt 0:18:35][%csl Gg5][%cal Rc2h7]} g6 {[%emt 0:01:33]} 21. Nce4 {[%emt 0:01:46]} Qd8 {[%emt 0:18:37]} 22. d5 {[%emt 0:10:35][%cal Bd4d5,Bd5d6][%mdl 32]} h6 {[%emt 0:01:22] [#]} (22... Bf5 $142 23. dxc6 (23. Qc3 Bg7 $18) 23... Qxg5) 23. Nxf7 $1 $18 {[%emt 0:04:44][%mdl 512]} Nxf7 {[%emt 0:00:24] [#]} 24. Nf6+ $1 {[%emt 0:02:41][%mdl 576] Decoy} Nxf6 {[%emt 0:00:04]} 25. Qxg6+ {[%emt 0:00:04]} Bg7 {[%emt 0:00:06]} 26. d6 {[%emt 0:00:30]} Kh8 {[%emt 0:03:04][%cal Of7d6]} 27. Bxf7 {[%emt 0:00:12] White wants to mate with Re1.} Bd7 {[%emt 0:07:20]} 28. Re1 {[%emt 0:00:24]} Qa5 {[%emt 0:01:00]} 29. Bxf6 {[%emt 0:01:49] White took control after the opening.  Weighted Error Value: White=0.14 (very precise) /Black=1.03} 1-0

[Event "Rudolf Teschner GT 2022"]
[Site "Berlin"]
[Date "2022.05.27"]
[Round "3.4"]
[White "Langrock, Hannes"]
[Black "Gressmann, Moritz"]
[Result "1/2-1/2"]
[ECO "D11"]
[WhiteElo "2351"]
[BlackElo "2094"]
[Annotator "TA"]
[PlyCount "87"]
[EventDate "2022.05.25"]
[EventType "swiss"]
[EventCountry "GER"]
[SourceTitle "playchess.com"]
[Source "ChessBase"]
[SourceQuality "1"]
[TimeControl "5400+30"]

{[%evp 11,87,2,6,0,1,4,4,4,5,0,0,0,13,14,18,15,19,12,8,0,10,13,51,47,47,29,37,38,35,39,33,7,16,-63,-57,-67,-64,-87,-85,-144,-152,-134,-116,-119,-126,-131,-62,-64,-50,-71,-71,-91,-56,-55,-55,-58,-33,-54,-47,-52,-33,-44,-42,-91,-50,-45,-14,-14,-14,-18,-11,-8,-8,-8,0,-2,-2,-8]} 1. d4 {[%emt 0:00:05]} d5 {[%emt 0:00:05]} 2. Nf3 {[%emt 0:00:13]} Nf6 {[%emt 0:00:06]} 3. g3 {[%emt 0:00:16]} Bf5 {[%emt 0:00:07]} 4. Bg2 {[%emt 0:00:12]} e6 {[%emt 0:00:07]} 5. c4 {[%emt 0:00:47]} c6 {[%emt 0:00:05]} 6. Nc3 {[%emt 0:00:24]} h6 {[%emt 0:00:07]} 7. Qb3 {[%emt 0:00:33] D11: Slav Defence: 3 Nf3 sidelines and 3...Nf6 4 e3 Bg4.} Qb6 {[%emt 0:00:09]} 8. c5 {[%emt 0:00:34]} Qxb3 {[%emt 0:00:07]} 9. axb3 {[%emt 0:00:06]} Be7 {[%emt 0:00:33]} 10. h3 {[%emt 0:06:07] seems to push 10.b4 aside.} O-O {[%emt 0:01:26]} 11. g4 {[%emt 0:02:24]} Bh7 {[%emt 0:03:31]} 12. Bf4 {[%emt 0:02:08]} Nbd7 {[%emt 0:04:31]} 13. b4 {[%emt 0:07:01]} a6 {[%emt 0:04:27]} 14. Nd2 {[%emt 0:02:46]} Rfe8 {[%emt 0:07:43]} 15. Nb3 {[%emt 0:22:43] [#]} Bd8 $146 {[%emt 0:18:51]} ({Predecessor:} 15... Bf8 16. Na5 e5 17. dxe5 Nxe5 18. Bxe5 Rxe5 19. Nxb7 Rb8 20. Na5 Re6 21. Na2 g5 {1-0 (48) Claramunt Bassegoda,M (2035)-Comellas Blanchart,J (2045) Barcelona 2022}) 16. b5 {[%emt 0:07:50]} cxb5 {[%emt 0:07:14] [#]} 17. Nxb5 $1 {[%emt 0:01:49][%mdl 64] aiming for Nd6. Pin} e5 {[%emt 0:02:42]} 18. dxe5 {[%emt 0:02:27]} Nxe5 {[%emt 0:00:28] White must now prevent ...Nd3+.} 19. O-O {[%emt 0:00:45]} Nc4 {[%emt 0:04:36]} 20. Nc3 {[%emt 0:01:52]} Be4 {[%emt 0:10:41]} 21. Nxe4 {[%emt 0:03:38]} Nxe4 {[%emt 0:01:37][%cal Bf6e4,Be4g5,Bg5e6][%mdl 32]} 22. f3 {[%emt 0:17:11]} (22. Rfd1 $11) 22... Ng5 {[%emt 0:04:48]} 23. e4 {[%emt 0:01:03]} Ne6 {[%emt 0:04:49] Pair of Knights!} 24. Bc1 {[%emt 0:00:23]} dxe4 {[%emt 0:01:33] Threatens to win with ...e3.} 25. Ra4 {[%emt 0:04:08]} (25. f4 $142) 25... b5 $17 {[%emt 0:02:27]} 26. cxb6 {[%emt 0:00:08]} Bxb6+ {[%emt 0:00:06]} 27. Kh1 {[%emt 0:00:07] [#]} Rac8 {[%emt 0:06:26] Hoping for ...e3.} 28. fxe4 {[%emt 0:01:47]} Ne3 {[%emt 0:06:04]} (28... Red8 $17 {Strongly threatening ...Rd3.} 29. Rxa6 Rd3) 29. Bxe3 $15 {[%emt 0:11:15]} Bxe3 {[%emt 0:00:02][%cal Bb6e3,Be3g5,Bg5f6,Bf6e5][%mdl 32]} 30. Re1 {[%emt 0:00:52]} Bg5 {[%emt 0:00:45]} 31. Nd4 {[%emt 0:01:33]} Nxd4 {[%emt 0:01:25]} 32. Rxd4 {[%emt 0:00:02]} Bf6 {[%emt 0:03:46]} 33. Rd2 {[%emt 0:00:49]} Rb8 {[%emt 0:00:29]} 34. Ree2 {[%emt 0:01:30]} Be5 {[%emt 0:00:30]} 35. Bf1 {[%emt 0:00:36]} Rb4 {[%emt 0:02:42]} 36. Rf2 {[%emt 0:00:38]} a5 {[%emt 0:00:59]} 37. Rd7 {[%emt 0:00:12]} (37. Rc2 $15 {might be stronger.}) 37... f6 {[%emt 0:01:48]} ({Much weaker is} 37... Rxb2 $6 38. Rxb2 Bxb2 39. Bc4 $11) 38. b3 {[%emt 0:00:25]} a4 {[%emt 0:00:45]} 39. bxa4 {[%emt 0:00:28] The position is equal.} Rxa4 {[%emt 0:00:01]} 40. Bd3 {[%emt 0:01:52]} Rd4 {[%emt 0:00:33]} 41. Rxd4 {[%emt 0:00:08]} Bxd4 {[%emt 0:00:01]} 42. Rd2 {[%emt 0:00:16]} Rd8 {[%emt 0:00:47]} 43. Bc4+ {[%emt 0:00:06]} Kf8 {[%emt 0:00:46]} 44. Kg2 {[%emt 0:00:03] Weighted Error Value: White=0.12 (very precise) /Black=0.09 (flawless)} 1/2-1/2

[Event "Rudolf Teschner GT 2022"]
[Site "Berlin"]
[Date "2022.05.27"]
[Round "3.5"]
[White "Krefenstein, Sergej"]
[Black "Klenburg, Michael"]
[Result "0-1"]
[ECO "A26"]
[WhiteElo "2103"]
[BlackElo "2346"]
[Annotator "TA"]
[PlyCount "86"]
[EventDate "2022.05.25"]
[EventType "swiss"]
[EventCountry "GER"]
[SourceTitle "playchess.com"]
[Source "ChessBase"]
[SourceQuality "1"]
[TimeControl "5400+30"]

{[%evp 15,86,8,13,8,17,16,33,41,37,0,0,7,0,-7,-1,0,0,-14,0,-2,-12,-24,-23,-53,-68,-98,-92,-84,-83,-114,-29,-173,-170,-175,-183,-254,-249,-344,-322,-329,-307,-394,-340,-386,-333,-370,-385,-425,-429,-445,-441,-429,-395,-474,-477,-501,-484,-474,-494,-595,-606,-687,-686,-1089,-1080,-1081,-1050,-916,-1013,-2110,-1990,-1710,-1528]} 1. c4 {[%emt 0:00:04]} e5 {[%emt 0:00:39]} 2. Nc3 {[%emt 0:00:27]} d6 {[%emt 0:00:14]} 3. g3 {[%emt 0:00:16]} g6 {[%emt 0:00:11]} 4. Bg2 {[%emt 0:00:06]} Bg7 {[%emt 0:00:11]} 5. e4 {[%emt 0:00:58]} Nc6 {[%emt 0:00:50]} 6. Nge2 {[%emt 0:00:28]} Be6 {[%emt 0:03:03]} 7. d3 {[%emt 0:00:56]} Qd7 {[%emt 0:00:33]} 8. Nd5 {[%emt 0:02:32]} Nd8 {[%emt 0:02:54]} 9. O-O {[%emt 0:10:25] A26: English Opening vs King's Indian with ...Nc6 and d3.} c6 {[%emt 0:01:29]} 10. Ndc3 {[%emt 0:00:06]} Bh3 {[%emt 0:03:24]} 11. d4 {[%emt 0:04:15] [#] White is slightly better.} h5 $146 {[%emt 0:07:56]} ({Predecessor:} 11... Bxg2 12. Kxg2 exd4 13. Nxd4 Ne6 14. Be3 Ne7 15. f4 O-O-O 16. f5 gxf5 17. Nxf5 Be5 18. Bxa7 {1-0 (24) Froitzheim,R (1716)-Antonioli,V (1779) Nordrheinwestfalen 2016}) 12. dxe5 {[%emt 0:04:25]} (12. Bxh3 {with more complications.} Qxh3 13. f3 exd4 14. Nxd4 Ne6 15. Be3) 12... dxe5 {[%emt 0:00:48]} 13. Qxd7+ {[%emt 0:02:06]} Bxd7 {[%emt 0:00:07]} 14. f4 {[%emt 0:03:10]} h4 {[%emt 0:02:41]} 15. f5 {[%emt 0:06:33]} hxg3 {[%emt 0:01:23]} 16. Nxg3 {[%emt 0:03:14]} Bf8 {[%emt 0:04:09]} 17. Be3 {[%emt 0:01:07]} b6 {[%emt 0:00:13]} 18. Rad1 {[%emt 0:02:07]} Be7 {[%emt 0:02:24]} 19. a3 {[%emt 0:05:27]} Nb7 {[%emt 0:00:40][%cal Bd8b7,Bb7d6,Bd6c4,Bc4b2][%mdl 32]} 20. b4 {[%emt 0:04:15] [#] Against Na5} Nd6 $1 {[%emt 0:01:44]} 21. c5 {[%emt 0:07:09]} Nc4 {[%emt 0:00:54][%csl LRa3,LRe3]} 22. Bf2 {[%emt 0:00:19]} bxc5 {[%emt 0:09:21]} (22... Nf6 $17 {And now ...Ng4 would win.} 23. Bf3 Nxa3) 23. b5 {[%emt 0:04:07] This costs White the game.} ({Avoid the trap} 23. Bxc5 $2 Bxc5+ 24. bxc5 Ne3 25. fxg6 fxg6 $19) (23. Na4 $11 {and White has nothing to worry.}) 23... cxb5 $19 {[%emt 0:02:38]} 24. Nd5 {[%emt 0:00:17]} Rc8 {[%emt 0:03:32]} 25. a4 {[%emt 0:01:04]} (25. Rd3 $142) 25... Nb2 {[%emt 0:05:11]} (25... bxa4 $2 26. Be1 $19) 26. Rb1 {[%emt 0:00:35]} Nxa4 {[%emt 0:00:20]} 27. fxg6 {[%emt 0:00:52]} fxg6 {[%emt 0:00:10]} 28. Be3 {[%emt 0:01:40]} Rh7 {[%emt 0:06:43]} 29. Rfc1 {[%emt 0:00:27]} Nf6 {[%emt 0:03:08]} 30. Nxe7 {[%emt 0:05:17]} Rxe7 {[%emt 0:00:44]} ({Not} 30... Kxe7 $2 31. Bg5 $19) 31. Nf1 {[%emt 0:00:39]} a6 {[%emt 0:02:56]} 32. Bg5 {[%emt 0:00:16]} Rf7 {[%emt 0:00:20]} 33. Ne3 {[%emt 0:00:15]} Be6 {[%emt 0:01:06]} 34. Bh4 {[%emt 0:02:20]} Nh5 {[%emt 0:01:42] Black is clearly winning.} 35. Nd5 {[%emt 0:00:57]} Nf4 {[%emt 0:01:40]} 36. Nxf4 {[%emt 0:00:39]} exf4 {[%emt 0:00:05]} ({But not} 36... Rxf4 $2 37. Bg5 $19) 37. Rf1 {[%emt 0:01:08]} c4 {[%emt 0:02:02][%cal Bc5c4,Bc4c3,Bc3c2][%mdl 32]} 38. Bg5 {[%emt 0:00:19]} c3 {[%emt 0:00:18]} 39. Bxf4 {[%emt 0:00:20]} c2 {[%emt 0:00:15]} 40. Rbc1 {[%emt 0:00:20]} b4 {[%emt 0:01:08][%cal Bb5b4,Bb4b3][%mdl 32] [#] aiming for ...b3.} 41. Be5 {[%emt 0:01:26]} b3 {[%emt 0:00:28]} 42. Rxf7 {[%emt 0:00:37]} Bxf7 {[%emt 0:00:08]} 43. Bf1 {[%emt 0:00:07]} Nc3 {[%emt 0:01:44] Weighted Error Value: White=0.46/Black=0.11 (very precise)} 0-1